[Event "EYCC Open-U16 2019"]
[Site "Bratislava"]
[Date "2019.08.06"]
[Round "5.1"]
[White "Pogosyan, Stefan"]
[Black "Barseghyan, Armen Ar."]
[Result "1/2-1/2"]
[ECO "A61"]
[WhiteElo "2334"]
[BlackElo "2313"]
[Annotator "NA"]
[PlyCount "239"]
[EventDate "2019.08.02"]
[EventType "swiss"]
[EventCountry "SVK"]
[SourceTitle "playchess.com"]
[Source "ChessBase"]
[SourceQuality "1"]
[TimeControl "40/5400+30:1800+30"]

1. d4 {[%emt 0:00:00]} Nf6 {[%emt 0:00:40]} 2. c4 {[%emt 0:00:00]} c5 {[%emt 0:00:13]} 3. d5 {[%emt 0:00:00]} e6 {[%emt 0:00:36]} 4. Nc3 {[%emt 0:00:00]} exd5 {[%emt 0:00:07]} 5. cxd5 {[%emt 0:00:01]} d6 {[%emt 0:00:04]} 6. Nf3 {[%emt 0:00:09]} g6 {[%emt 0:00:16]} 7. Nd2 {[%emt 0:00:10]} Bg7 {[%emt 0:00:32]} 8. e4 {[%emt 0:01:04]} O-O {[%emt 0:00:15]} 9. Be2 {[%emt 0:00:03]} Na6 {[%emt 0:00:22]} 10. O-O {[%emt 0:00:37]} Ne8 {[%emt 0:00:21]} 11. Nc4 {[%emt 0:00:13]} f5 {[%emt 0:00:50]} 12. Re1 {[%emt 0:00:09]} Rb8 {[%emt 0:02:46]} 13. a4 {[%emt 0:00:52]} Nb4 {[%emt 0:04:13]} 14. Bf3 {[%emt 0:05:44]} f4 {[%emt 0:09:20]} 15. Bg4 {[%emt 0:10:55]} Bxg4 {[%emt 0:04:41]} 16. Qxg4 {[%emt 0:00:13]} Nd3 {[%emt 0:00:38]} 17. Rd1 {[%emt 0:10:38]} Ne5 {[%emt 0:00:15]} 18. Nxe5 {[%emt 0:00:04]} Bxe5 {[%emt 0:00:06]} 19. Ne2 {[%emt 0:08:42]} Qf6 {[%emt 0:04:14]} 20. Ra3 {[%emt 0:08:29]} Ng7 {[%emt 0:15:16]} 21. Rf3 {[%emt 0:10:11]} h5 {[%emt 0:01:51]} 22. Qd7 {[%emt 0:00:27]} Rf7 {[%emt 0:02:24]} 23. Qb5 {[%emt 0:00:16]} g5 {[%emt 0:01:19]} 24. g3 {[%emt 0:04:38]} Qg6 {[%emt 0:06:44]} 25. Qd3 {[%emt 0:02:17]} c4 {[%emt 0:01:41]} 26. Qxc4 {[%emt 0:02:58]} fxg3 {[%emt 0:00:50]} 27. Rxg3 {[%emt 0:02:47]} Bxg3 {[%emt 0:00:06]} 28. hxg3 {[%emt 0:00:34]} Qf6 {[%emt 0:02:40]} 29. Be3 {[%emt 0:01:29]} h4 {[%emt 0:03:30]} 30. Qd3 {[%emt 0:02:06]} Nh5 {[%emt 0:09:42]} 31. gxh4 {[%emt 0:10:45]} gxh4 {[%emt 0:01:40]} 32. Kh2 {[%emt 0:02:04]} Re8 {[%emt 0:12:58]} 33. Bd4 {[%emt 0:05:55]} Qf3 {[%emt 0:01:00]} 34. Qxf3 {[%emt 0:01:05]} Rxf3 {[%emt 0:00:06]} 35. Kg2 {[%emt 0:00:23]} Rf7 {[%emt 0:01:14]} 36. f3 {[%emt 0:03:42]} Nf4+ {[%emt 0:02:57]} 37. Nxf4 {[%emt 0:01:57]} Rxf4 {[%emt 0:00:05]} 38. Rh1 {[%emt 0:00:44]} Rc8 {[%emt 0:01:42]} 39. Kf2 {[%emt 0:03:22]} Rcf8 {[%emt 0:00:30]} 40. Ke2 {[%emt 0:00:00]} Rxf3 {[%emt 0:00:00]} 41. Rxh4 {[%emt 0:00:13]} Rg3 {[%emt 0:12:36]} 42. Rh8+ {[%emt 0:02:37]} Kf7 {[%emt 0:00:46]} 43. Rh7+ {[%emt 0:05:43]} Ke8 {[%emt 0:01:35]} 44. Rxb7 {[%emt 0:01:56]} Rf4 {[%emt 0:00:10]} 45. Rb8+ {[%emt 0:00:36]} Kd7 {[%emt 0:01:09]} 46. Rb7+ {[%emt 0:00:02]} Kd8 {[%emt 0:01:00]} 47. Rb8+ {[%emt 0:00:06]} Kc7 {[%emt 0:00:10]} 48. Re8 {[%emt 0:00:05]} Kd7 {[%emt 0:00:02]} 49. Re6 {[%emt 0:00:09]} Rh4 {[%emt 0:00:48]} 50. Bxa7 {[%emt 0:09:10]} Rh2+ {[%emt 0:00:48]} 51. Bf2 {[%emt 0:00:37]} Rb3 {[%emt 0:00:15]} 52. Rf6 {[%emt 0:01:11]} Rxb2+ {[%emt 0:00:03]} 53. Kf1 {[%emt 0:00:08]} Rb1+ {[%emt 0:00:43]} 54. Ke2 {[%emt 0:00:21]} Rb2+ {[%emt 0:00:38]} 55. Kf1 {[%emt 0:00:16]} Ke7 {[%emt 0:01:46]} 56. Rf5 {[%emt 0:02:34]} Rb1+ {[%emt 0:00:38]} 57. Ke2 {[%emt 0:00:35]} Rb2+ {[%emt 0:00:03]} 58. Kf1 {[%emt 0:00:04]} Ra2 {[%emt 0:01:33]} 59. Kg1 {[%emt 0:01:24]} Rh7 {[%emt 0:00:45]} 60. e5 {[%emt 0:01:01]} Rg7+ {[%emt 0:00:35]} 61. Kf1 {[%emt 0:00:53]} dxe5 {[%emt 0:01:11]} 62. Rxe5+ {[%emt 0:00:23]} Kd6 {[%emt 0:00:29]} 63. Rf5 {[%emt 0:00:07]} Rxa4 {[%emt 0:00:53]} 64. Ke2 {[%emt 0:01:08]} Ra3 {[%emt 0:01:43]} 65. Kf1 {[%emt 0:02:24]} Rb7 {[%emt 0:02:46]} 66. Kg2 {[%emt 0:00:32]} Rg7+ {[%emt 0:00:51]} 67. Kf1 {[%emt 0:00:19]} Rb7 {[%emt 0:00:12]} 68. Kg2 {[%emt 0:00:06]} Rb2 {[%emt 0:00:06]} 69. Kf1 {[%emt 0:00:17]} Rd2 {[%emt 0:02:26]} 70. Kg2 {[%emt 0:00:31]} Rb3 {[%emt 0:01:02]} 71. Kh2 {[%emt 0:01:32]} Rbb2 {[%emt 0:00:23]} 72. Kg1 {[%emt 0:02:47]} Ra2 {[%emt 0:01:23]} 73. Kg2 {[%emt 0:00:40]} Rxd5 {[%emt 0:00:13]} 74. Rxd5+ {[%emt 0:00:07]} Kxd5 {[%emt 0:00:02]} 75. Kf3 {[%emt 0:00:11]} Ke5 {[%emt 0:00:06]} 76. Bg3+ {[%emt 0:00:57]} Kf5 {[%emt 0:00:05]} 77. Bc7 {[%emt 0:00:29]} Ra3+ {[%emt 0:00:09]} 78. Kg2 {[%emt 0:00:27]} Rb3 {[%emt 0:00:08]} 79. Bh2 {[%emt 0:00:21]} Kg4 {[%emt 0:00:53]} 80. Bg1 {[%emt 0:00:23]} Rb2+ {[%emt 0:00:11]} 81. Kh1 {[%emt 0:00:06]} Kg3 {[%emt 0:00:42]} 82. Bc5 {[%emt 0:00:32]} Rh2+ {[%emt 0:00:31]} 83. Kg1 {[%emt 0:00:05]} Rc2 {[%emt 0:00:14]} 84. Bd6+ {[%emt 0:00:05]} Kf3 {[%emt 0:00:03]} 85. Kh1 {[%emt 0:01:05]} Rc1+ {[%emt 0:00:09]} 86. Kh2 {[%emt 0:00:06]} Rc6 {[%emt 0:00:03]} 87. Bb8 {[%emt 0:00:28]} Ra6 {[%emt 0:00:50]} 88. Be5 {[%emt 0:00:34]} Ra4 {[%emt 0:00:10]} 89. Bd6 {[%emt 0:00:24]} Rc4 {[%emt 0:00:18]} 90. Bb8 {[%emt 0:00:14]} Rc5 {[%emt 0:00:07]} 91. Kh1 {[%emt 0:01:01]} Rg5 {[%emt 0:00:21]} 92. Bc7 {[%emt 0:00:24]} Rh5+ {[%emt 0:00:36]} 93. Bh2 {[%emt 0:00:15]} Rb5 {[%emt 0:00:04]} 94. Bg1 {[%emt 0:00:16]} Rg5 {[%emt 0:01:37]} 95. Bh2 {[%emt 0:00:37]} Kf2 {[%emt 0:00:05]} 96. Bc7 {[%emt 0:00:22]} Rb5 {[%emt 0:00:11]} 97. Bd6 {[%emt 0:00:36]} Ra5 {[%emt 0:00:17]} 98. Bc7 {[%emt 0:00:12]} Ra6 {[%emt 0:00:04]} 99. Be5 {[%emt 0:00:17]} Ra5 {[%emt 0:01:17]} 100. Bb8 {[%emt 0:01:50]} Ra1+ {[%emt 0:00:57]} 101. Kh2 {[%emt 0:00:13]} Ra8 {[%emt 0:00:03]} 102. Be5 {[%emt 0:00:14]} Ra4 {[%emt 0:00:23]} 103. Kh1 {[%emt 0:00:33]} Rh4+ {[%emt 0:00:03]} 104. Bh2 {[%emt 0:00:07]} Rb4 {[%emt 0:00:08]} 105. Bd6 {[%emt 0:00:35]} Rb5 {[%emt 0:00:07]} 106. Bc7 {[%emt 0:01:10]} Rb1+ {[%emt 0:00:03]} 107. Kh2 {[%emt 0:00:06]} Rb7 {[%emt 0:00:04]} 108. Bg3+ {[%emt 0:00:04]} Kf3 {[%emt 0:00:02]} 109. Bd6 {[%emt 0:00:20]} Rh7+ {[%emt 0:00:27]} 110. Kg1 {[%emt 0:00:10]} Rd7 {[%emt 0:00:03]} 111. Bb8 {[%emt 0:00:48]} Rd8 {[%emt 0:00:21]} 112. Bc7 {[%emt 0:00:22]} Rg8+ {[%emt 0:00:13]} 113. Kh1 {[%emt 0:00:12]} Rh8+ {[%emt 0:00:16]} 114. Bh2 {[%emt 0:00:06]} Rh6 {[%emt 0:00:22]} 115. Kg1 {[%emt 0:00:08]} Rb6 {[%emt 0:00:04]} 116. Kh1 {[%emt 0:00:30]} Rb1+ {[%emt 0:00:05]} 117. Bg1 {[%emt 0:00:09]} Rb7 {[%emt 0:00:29]} 118. Bh2 {[%emt 0:00:10]} Rb6 {[%emt 0:00:07]} 119. Bg1 {[%emt 0:00:09]} Rb3 {[%emt 0:00:13]} 120. Bh2 {[%emt 0:00:25]} 1/2-1/2

[Event "EYCC Open-U16 2019"]
[Site "Bratislava"]
[Date "2019.08.06"]
[Round "5.2"]
[White "Sargsyan, Tigran R."]
[Black "Teclaf, Pawel"]
[Result "0-1"]
[ECO "A04"]
[WhiteElo "2314"]
[BlackElo "2454"]
[Annotator "ChessBase"]
[PlyCount "60"]
[EventDate "2019.08.02"]
[EventType "swiss"]
[EventCountry "SVK"]
[SourceTitle "playchess.com"]
[Source "ChessBase"]
[SourceQuality "1"]
[TimeControl "40/5400+30:1800+30"]

1. Nf3 {[%emt 0:00:00]} c5 {[%emt 0:03:03]} 2. c4 {[%emt 0:00:00]} b6 {[%emt 0:01:08]} 3. Nc3 {[%emt 0:01:04]} Bb7 {[%emt 0:00:45]} 4. e4 {[%emt 0:01:25]} e6 {[%emt 0:01:48]} 5. d4 {[%emt 0:08:22]} cxd4 {[%emt 0:01:01]} 6. Nxd4 {[%emt 0:00:29]} a6 {[%emt 0:03:41]} 7. Be3 {[%emt 0:07:33]} d6 {[%emt 0:08:47]} 8. a4 {[%emt 0:02:47]} Nf6 {[%emt 0:02:59]} 9. f3 {[%emt 0:01:17]} Nbd7 {[%emt 0:07:26]} 10. Be2 {[%emt 0:08:11]} Be7 {[%emt 0:06:00]} 11. a5 {[%emt 0:03:06]} bxa5 {[%emt 0:06:31]} 12. Nb3 {[%emt 0:01:26]} Rb8 {[%emt 0:03:08]} 13. Nxa5 {[%emt 0:01:30]} Ba8 {[%emt 0:00:07]} 14. Qd2 {[%emt 0:03:58]} O-O {[%emt 0:12:37]} 15. O-O {[%emt 0:02:03]} Ne5 {[%emt 0:02:22]} 16. Rfd1 {[%emt 0:13:38]} h5 {[%emt 0:02:44]} 17. h3 {[%emt 0:04:26]} Qc7 {[%emt 0:04:45]} 18. Ra4 {[%emt 0:15:10]} Rfd8 {[%emt 0:04:20]} 19. Qc2 {[%emt 0:02:04]} d5 {[%emt 0:07:43]} 20. cxd5 {[%emt 0:03:28]} exd5 {[%emt 0:00:01]} 21. f4 {[%emt 0:02:19]} Ng6 {[%emt 0:01:01]} 22. e5 {[%emt 0:01:29]} Ne4 {[%emt 0:00:02]} 23. Nb3 {[%emt 0:06:04]} Nc5 {[%emt 0:05:58]} 24. Nxc5 {[%emt 0:03:56]} Bxc5 {[%emt 0:00:09]} 25. Qd2 {[%emt 0:02:48]} d4 {[%emt 0:01:45]} 26. Rxd4 {[%emt 0:03:40]} Rxd4 {[%emt 0:00:01]} 27. Bxd4 {[%emt 0:00:02]} Rd8 {[%emt 0:00:13]} 28. Qe3 {[%emt 0:01:08]} Rxd4 {[%emt 0:00:02]} 29. Rxd4 {[%emt 0:00:28]} Qa7 {[%emt 0:00:08]} 30. Rd8+ {[%emt 0:00:27]} Kh7 {[%emt 0:00:10]} 0-1

[Event "EYCC Open-U16 2019"]
[Site "Bratislava"]
[Date "2019.08.06"]
[Round "5.3"]
[White "Stefansson, Vignir Vatnar"]
[Black "Sahidi, Samir"]
[Result "0-1"]
[ECO "D45"]
[WhiteElo "2293"]
[BlackElo "2369"]
[Annotator "NA"]
[PlyCount "100"]
[EventDate "2019.08.02"]
[EventType "swiss"]
[EventCountry "SVK"]
[SourceTitle "playchess.com"]
[Source "ChessBase"]
[SourceQuality "1"]
[TimeControl "40/5400+30:1800+30"]

1. d4 {[%emt 0:00:00]} Nf6 {[%emt 0:00:06]} 2. c4 {[%emt 0:00:29]} c6 {[%emt 0:01:46]} 3. Nc3 {[%emt 0:04:22]} d5 {[%emt 0:00:08]} 4. e3 {[%emt 0:02:49]} e6 {[%emt 0:03:26]} 5. Nf3 {[%emt 0:00:11]} Be7 {[%emt 0:00:36]} 6. Bd2 {[%emt 0:07:02]} O-O {[%emt 0:06:12]} 7. Bd3 {[%emt 0:00:27]} Nbd7 {[%emt 0:01:35]} 8. O-O {[%emt 0:06:39]} dxc4 {[%emt 0:01:02]} 9. Bxc4 {[%emt 0:00:06]} b5 {[%emt 0:00:12]} 10. Bd3 {[%emt 0:01:37]} a6 {[%emt 0:03:33]} 11. Ne4 {[%emt 0:04:44]} c5 {[%emt 0:01:53]} 12. dxc5 {[%emt 0:00:19]} Nxc5 {[%emt 0:10:38]} 13. Nxf6+ {[%emt 0:25:05]} gxf6 {[%emt 0:02:39]} 14. Bc2 {[%emt 0:01:37]} Bb7 {[%emt 0:02:02]} 15. Nd4 {[%emt 0:03:22]} f5 {[%emt 0:03:44]} 16. Qh5 {[%emt 0:07:07]} Ne4 {[%emt 0:03:37]} 17. Be1 {[%emt 0:00:46]} Nf6 {[%emt 0:01:29]} 18. Qh3 {[%emt 0:00:52]} Kh8 {[%emt 0:01:06]} 19. f3 {[%emt 0:00:58]} Rg8 {[%emt 0:03:50]} 20. Rd1 {[%emt 0:03:20]} Qb6 {[%emt 0:04:26]} 21. Bg3 {[%emt 0:01:38]} Rg6 {[%emt 0:04:28]} 22. Kh1 {[%emt 0:07:20]} Rd8 {[%emt 0:10:11]} 23. Bb1 {[%emt 0:04:24]} Bd6 {[%emt 0:11:01]} 24. Bh4 {[%emt 0:03:29]} Be5 {[%emt 0:05:29]} 25. Bf2 {[%emt 0:01:29]} Rdg8 {[%emt 0:01:13]} 26. Rg1 {[%emt 0:04:26]} Qc7 {[%emt 0:00:57]} 27. Bh4 {[%emt 0:02:12]} Nd5 {[%emt 0:01:49]} 28. Rge1 {[%emt 0:02:08]} Rxg2 {[%emt 0:01:11]} 29. Qxg2 {[%emt 0:00:10]} Rxg2 {[%emt 0:00:05]} 30. Kxg2 {[%emt 0:00:03]} f4 {[%emt 0:01:10]} 31. Nc2 {[%emt 0:00:05]} fxe3 {[%emt 0:05:10]} 32. Nxe3 {[%emt 0:00:01]} Nf4+ {[%emt 0:00:53]} 33. Kf2 {[%emt 0:00:11]} Bxb2 {[%emt 0:01:09]} 34. Bg3 {[%emt 0:01:42]} Bc3 {[%emt 0:00:33]} 35. Re2 {[%emt 0:01:08]} Be5 {[%emt 0:00:53]} 36. Ng4 {[%emt 0:01:04]} Nh3+ {[%emt 0:00:34]} 37. Kg2 {[%emt 0:00:20]} Bxg3 {[%emt 0:00:15]} 38. hxg3 {[%emt 0:00:43]} Ng5 {[%emt 0:00:39]} 39. Re3 {[%emt 0:01:36]} Nxf3 {[%emt 0:01:55]} 40. Rxf3 {[%emt 0:00:00]} Bxf3+ {[%emt 0:00:00]} 41. Kxf3 {[%emt 0:04:02]} Qc3+ {[%emt 0:01:55]} 42. Ne3 {[%emt 0:01:57]} Kg7 {[%emt 0:01:29]} 43. g4 {[%emt 0:01:04]} a5 {[%emt 0:01:02]} 44. Bd3 {[%emt 0:05:14]} Qf6+ {[%emt 0:01:26]} 45. Ke2 {[%emt 0:00:25]} b4 {[%emt 0:00:18]} 46. Bc2 {[%emt 0:00:35]} Qb2 {[%emt 0:00:43]} 47. Rb1 {[%emt 0:01:17]} Qxa2 {[%emt 0:01:57]} 48. Rb3 {[%emt 0:00:25]} Qa1 {[%emt 0:00:16]} 49. Nc4 {[%emt 0:01:36]} Qd4 {[%emt 0:01:24]} 50. Nxa5 {[%emt 0:00:03]} Qe5+ {[%emt 0:00:09] g5} 0-1

[Event "EYCC Open-U16 2019"]
[Site "Bratislava"]
[Date "2019.08.06"]
[Round "5.4"]
[White "Globus, Or"]
[Black "De Boer, Eelke"]
[Result "1/2-1/2"]
[ECO "A49"]
[WhiteElo "2352"]
[BlackElo "2279"]
[Annotator "NA"]
[PlyCount "51"]
[EventDate "2019.08.02"]
[EventType "swiss"]
[EventCountry "SVK"]
[SourceTitle "playchess.com"]
[Source "ChessBase"]
[SourceQuality "1"]
[TimeControl "40/5400+30:1800+30"]

1. d4 {[%emt 0:00:00]} Nf6 {[%emt 0:00:00]} 2. Nf3 {[%emt 0:00:00]} g6 {[%emt 0:00:00]} 3. g3 {[%emt 0:00:07]} Bg7 {[%emt 0:00:00]} 4. Bg2 {[%emt 0:00:09]} O-O {[%emt 0:00:08]} 5. O-O {[%emt 0:00:12]} d6 {[%emt 0:00:19]} 6. b3 {[%emt 0:00:22]} c5 {[%emt 0:15:52]} 7. c4 {[%emt 0:00:47]} Nc6 {[%emt 0:03:00]} 8. Bb2 {[%emt 0:00:24]} Ne4 {[%emt 0:11:23]} 9. e3 {[%emt 0:00:13]} f5 {[%emt 0:04:14]} 10. Nc3 {[%emt 0:27:21]} e6 {[%emt 0:06:45]} 11. Rc1 {[%emt 0:05:57]} Qe7 {[%emt 0:07:35]} 12. d5 {[%emt 0:09:55]} Nb4 {[%emt 0:06:51]} 13. Qe2 {[%emt 0:08:17]} Nxc3 {[%emt 0:03:23]} 14. Bxc3 {[%emt 0:00:22]} Bxc3 {[%emt 0:00:11]} 15. Rxc3 {[%emt 0:00:07]} exd5 {[%emt 0:00:13]} 16. a3 {[%emt 0:02:36]} d4 {[%emt 0:00:44]} 17. Rcc1 {[%emt 0:00:27]} Nc6 {[%emt 0:00:07]} 18. Rcd1 {[%emt 0:00:24]} Bd7 {[%emt 0:11:45]} 19. Rfe1 {[%emt 0:01:51]} dxe3 {[%emt 0:02:41]} 20. Qxe3 {[%emt 0:00:42]} Qxe3 {[%emt 0:01:19]} 21. Rxe3 {[%emt 0:00:06]} Rf6 {[%emt 0:00:07]} 22. Red3 {[%emt 0:01:47]} Re8 {[%emt 0:05:56]} 23. Rxd6 {[%emt 0:01:57]} Rxd6 {[%emt 0:00:08]} 24. Rxd6 {[%emt 0:00:09]} Re7 {[%emt 0:00:53]} 25. Kf1 {[%emt 0:08:17]} Na5 {[%emt 0:11:16]} 26. Nd2 {[%emt 0:05:59]} 1/2-1/2

[Event "EYCC Open-U16 2019"]
[Site "Bratislava"]
[Date "2019.08.06"]
[Round "5.5"]
[White "Horvath, Dominik"]
[Black "Van Dael, Siem"]
[Result "1/2-1/2"]
[ECO "A05"]
[WhiteElo "2424"]
[BlackElo "2319"]
[Annotator "NA"]
[PlyCount "65"]
[EventDate "2019.08.02"]
[EventType "swiss"]
[EventCountry "SVK"]
[SourceTitle "playchess.com"]
[Source "ChessBase"]
[SourceQuality "1"]
[TimeControl "40/5400+30:1800+30"]

1. Nf3 {[%emt 0:00:00]} Nf6 {[%emt 0:00:42]} 2. g3 {[%emt 0:00:00]} g6 {[%emt 0:00:49]} 3. b3 {[%emt 0:00:00]} Bg7 {[%emt 0:00:37]} 4. Bb2 {[%emt 0:00:00]} d6 {[%emt 0:00:05]} 5. d4 {[%emt 0:00:04]} O-O {[%emt 0:00:13]} 6. Bg2 {[%emt 0:00:03]} Ne4 {[%emt 0:04:18]} 7. Nbd2 {[%emt 0:02:25]} Nxd2 {[%emt 0:01:36]} 8. Qxd2 {[%emt 0:01:05]} c5 {[%emt 0:01:46]} 9. c4 {[%emt 0:05:20]} Nc6 {[%emt 0:00:58]} 10. dxc5 {[%emt 0:22:04]} Bxb2 {[%emt 0:05:55]} 11. Qxb2 {[%emt 0:00:04]} dxc5 {[%emt 0:00:54]} 12. O-O {[%emt 0:00:06]} Qc7 {[%emt 0:01:03]} 13. h3 {[%emt 0:07:51]} b6 {[%emt 0:05:31]} 14. Rfd1 {[%emt 0:02:01]} Bb7 {[%emt 0:01:00]} 15. Qd2 {[%emt 0:04:26]} Kg7 {[%emt 0:06:05]} 16. Qd7 {[%emt 0:00:45]} Rac8 {[%emt 0:00:54]} 17. Qxc7 {[%emt 0:05:46]} Rxc7 {[%emt 0:00:08]} 18. Rd2 {[%emt 0:00:02]} Rd8 {[%emt 0:03:05]} 19. Rad1 {[%emt 0:00:41]} Rxd2 {[%emt 0:00:24]} 20. Rxd2 {[%emt 0:00:03]} f6 {[%emt 0:00:31]} 21. Ne1 {[%emt 0:03:05]} Ne5 {[%emt 0:02:00]} 22. Rd8 {[%emt 0:07:28]} Nc6 {[%emt 0:01:47]} 23. Rd2 {[%emt 0:01:35]} Ne5 {[%emt 0:00:06]} 24. f4 {[%emt 0:08:29]} Bxg2 {[%emt 0:02:38]} 25. Kxg2 {[%emt 0:00:03]} Rd7 {[%emt 0:00:15]} 26. Rxd7 {[%emt 0:00:06]} Nxd7 {[%emt 0:00:08]} 27. Kf3 {[%emt 0:00:03]} f5 {[%emt 0:04:02]} 28. e4 {[%emt 0:01:23]} e5 {[%emt 0:01:49]} 29. exf5 {[%emt 0:09:00]} gxf5 {[%emt 0:00:11]} 30. fxe5 {[%emt 0:00:07]} Nxe5+ {[%emt 0:00:06]} 31. Ke3 {[%emt 0:00:05]} Kf6 {[%emt 0:00:28]} 32. Ng2 {[%emt 0:01:11]} Nc6 {[%emt 0:00:59]} 33. Ne1 {[%emt 0:03:02]} 1/2-1/2

[Event "EYCC Open-U16 2019"]
[Site "Bratislava"]
[Date "2019.08.06"]
[Round "5.6"]
[White "Mukhutdinov, Tigran"]
[Black "Subelj, Jan"]
[Result "1/2-1/2"]
[ECO "E04"]
[WhiteElo "2328"]
[BlackElo "2425"]
[Annotator "NA"]
[PlyCount "126"]
[EventDate "2019.08.02"]
[EventType "swiss"]
[EventCountry "SVK"]
[SourceTitle "playchess.com"]
[Source "ChessBase"]
[SourceQuality "1"]
[TimeControl "40/5400+30:1800+30"]

1. d4 {[%emt 0:00:00]} Nf6 {[%emt 0:00:13]} 2. c4 {[%emt 0:00:00]} e6 {[%emt 0:00:44]} 3. g3 {[%emt 0:00:00]} d5 {[%emt 0:04:29]} 4. Bg2 {[%emt 0:00:13]} dxc4 {[%emt 0:00:16]} 5. Nf3 {[%emt 0:00:32]} Nc6 {[%emt 0:02:44]} 6. Qa4 {[%emt 0:02:31]} Bb4+ {[%emt 0:00:36]} 7. Bd2 {[%emt 0:00:19]} Nd5 {[%emt 0:01:40]} 8. Bxb4 {[%emt 0:01:12]} Ndxb4 {[%emt 0:00:06]} 9. O-O {[%emt 0:02:09]} Rb8 {[%emt 0:12:24]} 10. Nc3 {[%emt 0:02:20]} O-O {[%emt 0:02:42]} 11. a3 {[%emt 0:02:46]} Nd5 {[%emt 0:00:30]} 12. Qxc4 {[%emt 0:01:58]} Nb6 {[%emt 0:04:36]} 13. Qd3 {[%emt 0:01:51]} Qe7 {[%emt 0:07:09]} 14. Rfd1 {[%emt 0:06:17]} Rd8 {[%emt 0:10:04]} 15. Qc2 {[%emt 0:09:02]} Bd7 {[%emt 0:09:38]} 16. Ne4 {[%emt 0:04:39]} Be8 {[%emt 0:04:34]} 17. Neg5 {[%emt 0:09:33]} f5 {[%emt 0:00:46]} 18. h4 {[%emt 0:01:13]} Bh5 {[%emt 0:04:09]} 19. Qb3 {[%emt 0:08:32]} Rd6 {[%emt 0:05:24]} 20. e3 {[%emt 0:12:26]} h6 {[%emt 0:04:13]} 21. Nh3 {[%emt 0:00:05]} Qf6 {[%emt 0:00:05]} 22. Nf4 {[%emt 0:01:45]} Bf7 {[%emt 0:00:02]} 23. Qc2 {[%emt 0:00:38]} g5 {[%emt 0:05:47]} 24. Nd3 {[%emt 0:00:14]} Bh5 {[%emt 0:00:17]} 25. hxg5 {[%emt 0:01:31]} hxg5 {[%emt 0:00:01]} 26. Re1 {[%emt 0:01:50]} Bxf3 {[%emt 0:05:19]} 27. Bxf3 {[%emt 0:00:05]} Nd7 {[%emt 0:02:03]} 28. b4 {[%emt 0:03:36]} e5 {[%emt 0:01:07]} 29. Bxc6 {[%emt 0:05:14]} Rxc6 {[%emt 0:00:01]} 30. Qb3+ {[%emt 0:01:42]} Kg7 {[%emt 0:02:35]} 31. dxe5 {[%emt 0:01:25]} Nxe5 {[%emt 0:00:13]} 32. Nxe5 {[%emt 0:00:15]} Qxe5 {[%emt 0:00:05]} 33. Rad1 {[%emt 0:01:05]} Rf6 {[%emt 0:01:36]} 34. Rd7+ {[%emt 0:02:58]} Kg6 {[%emt 0:01:26]} 35. Qc4 {[%emt 0:01:34]} c6 {[%emt 0:01:07]} 36. Red1 {[%emt 0:00:46]} b5 {[%emt 0:02:40]} 37. Qd3 {[%emt 0:00:56]} a6 {[%emt 0:01:12]} 38. Ra7 {[%emt 0:02:04]} Rbf8 {[%emt 0:05:13]} 39. Rxa6 {[%emt 0:02:06]} Qe7 {[%emt 0:00:06]} 40. Qd4 {[%emt 0:00:00]} Qh7 {[%emt 0:00:00]} 41. Ra7 {[%emt 0:19:42]} Qh5 {[%emt 0:01:19]} 42. e4 {[%emt 0:02:46]} Qf3 {[%emt 0:03:26]} 43. exf5+ {[%emt 0:04:47]} Qxf5 {[%emt 0:00:05]} 44. Rd2 {[%emt 0:00:45]} Re8 {[%emt 0:01:31]} 45. Qd3 {[%emt 0:07:35]} Qxd3 {[%emt 0:01:27]} 46. Rxd3 {[%emt 0:00:04]} Re2 {[%emt 0:00:59]} 47. f3 {[%emt 0:01:01]} Rfe6 {[%emt 0:08:29]} 48. Rad7 {[%emt 0:01:05]} Kf5 {[%emt 0:00:57]} 49. Rd2 {[%emt 0:02:38]} R2e3 {[%emt 0:01:39]} 50. R7d3 {[%emt 0:00:25]} g4 {[%emt 0:05:04]} 51. Kf2 {[%emt 0:00:10]} Re1 {[%emt 0:00:19]} 52. Rc2 {[%emt 0:01:08]} gxf3 {[%emt 0:01:42]} 53. Rxf3+ {[%emt 0:00:47]} Kg4 {[%emt 0:00:36]} 54. Rf4+ {[%emt 0:00:48]} Kg5 {[%emt 0:00:07]} 55. Rc3 {[%emt 0:00:16]} R1e2+ {[%emt 0:00:52]} 56. Kf3 {[%emt 0:00:08]} Re1 {[%emt 0:00:03]} 57. Rc5+ {[%emt 0:00:14]} Kg6 {[%emt 0:00:06]} 58. Kg4 {[%emt 0:01:31]} R1e3 {[%emt 0:01:31]} 59. Rg5+ {[%emt 0:00:50]} Kh6 {[%emt 0:00:14]} 60. Kh4 {[%emt 0:00:39]} Rxa3 {[%emt 0:02:15]} 61. Rf8 {[%emt 0:02:30]} Re4+ {[%emt 0:00:17]} 62. Rg4 {[%emt 0:01:43]} Rxg4+ {[%emt 0:00:12]} 63. Kxg4 {[%emt 0:00:03]} Rc3 {[%emt 0:00:54]} 1/2-1/2

[Event "EYCC Open-U16 2019"]
[Site "Bratislava"]
[Date "2019.08.06"]
[Round "5.7"]
[White "Ceres, Dragos"]
[Black "Stoyanov, Tsvetan"]
[Result "1/2-1/2"]
[ECO "B40"]
[WhiteElo "2266"]
[BlackElo "2387"]
[Annotator "NA"]
[PlyCount "73"]
[EventDate "2019.08.02"]
[EventType "swiss"]
[EventCountry "SVK"]
[SourceTitle "playchess.com"]
[Source "ChessBase"]
[SourceQuality "1"]
[TimeControl "40/5400+30:1800+30"]

1. e4 {[%emt 0:00:00]} c5 {[%emt 0:00:00]} 2. Nf3 {[%emt 0:00:00]} e6 {[%emt 0:00:00]} 3. d4 {[%emt 0:00:00]} cxd4 {[%emt 0:00:00]} 4. Nxd4 {[%emt 0:00:00]} Nf6 {[%emt 0:00:08]} 5. Nc3 {[%emt 0:00:04]} Nc6 {[%emt 0:00:13]} 6. Ndb5 {[%emt 0:08:13]} Bc5 {[%emt 0:00:27]} 7. Nd6+ {[%emt 0:06:07]} Ke7 {[%emt 0:00:06]} 8. Bf4 {[%emt 0:01:02]} e5 {[%emt 0:04:34]} 9. Nxc8+ {[%emt 0:02:30]} Rxc8 {[%emt 0:00:16]} 10. Bg5 {[%emt 0:00:11]} Bb4 {[%emt 0:00:08]} 11. Qd2 {[%emt 0:16:50]} Ke8 {[%emt 0:05:43]} 12. Bd3 {[%emt 0:07:07]} h6 {[%emt 0:19:17]} 13. Bxf6 {[%emt 0:02:05]} gxf6 {[%emt 0:02:26]} 14. O-O {[%emt 0:01:54]} Qa5 {[%emt 0:01:58]} 15. f4 {[%emt 0:06:43]} Nd4 {[%emt 0:07:03]} 16. fxe5 {[%emt 0:02:18]} Qxe5 {[%emt 0:01:15]} 17. Kh1 {[%emt 0:07:58]} h5 {[%emt 0:12:47]} 18. a3 {[%emt 0:08:17]} Ba5 {[%emt 0:03:14]} 19. Rae1 {[%emt 0:06:04]} Kf8 {[%emt 0:09:55]} 20. g3 {[%emt 0:05:16]} h4 {[%emt 0:08:24]} 21. g4 {[%emt 0:00:05]} Ne6 {[%emt 0:04:50]} 22. Qf2 {[%emt 0:01:16]} Bxc3 {[%emt 0:05:00]} 23. bxc3 {[%emt 0:00:03]} Rxc3 {[%emt 0:06:22]} 24. Qxa7 {[%emt 0:01:16]} Nf4 {[%emt 0:00:45]} 25. Qe3 {[%emt 0:03:53]} Nxd3 {[%emt 0:01:28]} 26. cxd3 {[%emt 0:00:10]} Qd6 {[%emt 0:00:27]} 27. Rd1 {[%emt 0:04:50]} Rxa3 {[%emt 0:00:43]} 28. g5 {[%emt 0:00:27]} Ra2 {[%emt 0:02:58]} 29. Rd2 {[%emt 0:00:44]} Rxd2 {[%emt 0:00:15]} 30. Qxd2 {[%emt 0:00:06]} fxg5 {[%emt 0:01:05]} 31. Qxg5 {[%emt 0:00:06]} Rh6 {[%emt 0:03:02]} 32. Rc1 {[%emt 0:06:54]} Qf6 {[%emt 0:00:29]} 33. Rc8+ {[%emt 0:00:30]} Ke7 {[%emt 0:00:02]} 34. Qc5+ {[%emt 0:00:08]} Qd6 {[%emt 0:00:01]} 35. Qg5+ {[%emt 0:00:28]} Qf6 {[%emt 0:01:12]} 36. Qc5+ {[%emt 0:01:05]} Qd6 {[%emt 0:00:01]} 37. Qg5+ {[%emt 0:00:12]} 1/2-1/2